[Event "FIDE Chesscom Grand Swiss 2021"]
[Site "Riga"]
[Date "2021.11.04"]
[Round "8.53"]
[White "Meshkovs, Nikita"]
[Black "Morovic Fernandez, Ivan"]
[Result "1-0"]
[ECO "A07"]
[WhiteElo "2550"]
[BlackElo "2510"]
[Annotator "ChessBase"]
[PlyCount "75"]
[EventDate "2021.10.27"]
[EventType "swiss"]
[EventCountry "LAT"]
[Tiebreak "Cut1 Buchholz+Sonneborn-Berger (Swiss)"]
[SourceTitle "playchess.com"]
[Source "ChessBase"]
[SourceQuality "1"]
[TimeControl "40/6000+30:20/3000+30:900+30"]

1. Nf3 {[%emt 0:00:04]} d5 {[%emt 0:00:38]} 2. g3 {[%emt 0:00:10]} c6 {[%emt 0:
00:12]} 3. Bg2 {[%emt 0:00:05]} Nf6 {[%emt 0:00:04]} 4. O-O {[%emt 0:00:08]}
Bg4 {[%emt 0:00:20]} 5. d3 {[%emt 0:00:08]} Nbd7 {[%emt 0:00:05]} 6. h3 {
[%emt 0:00:59]} Bh5 {[%emt 0:01:15]} 7. Nbd2 {[%emt 0:00:06]} e6 {[%emt 0:02:
22]} 8. e4 {[%emt 0:00:40]} Be7 {[%emt 0:00:43]} 9. Qe1 {[%emt 0:04:29]} O-O {
[%emt 0:00:53]} 10. e5 {[%emt 0:01:33]} Ne8 {[%emt 0:00:27]} 11. Nh2 {[%emt 0:
00:06]} Nc7 {[%emt 0:03:21]} 12. g4 {[%emt 0:03:32]} Bg6 {[%emt 0:00:17]} 13.
f4 {[%emt 0:00:07]} f6 {[%emt 0:04:28]} 14. Ndf3 {[%emt 0:00:09]} fxe5 {
[%emt 0:17:30]} 15. fxe5 {[%emt 0:00:12]} Nb5 {[%emt 0:04:37]} 16. Be3 {
[%emt 0:07:08]} Bc5 {[%emt 0:05:47]} 17. Bxc5 {[%emt 0:02:45]} Nxc5 {[%emt 0:
00:05]} 18. a4 {[%emt 0:00:06]} Nc7 {[%emt 0:01:23]} 19. Qe3 {[%emt 0:06:02]}
Nd7 {[%emt 0:02:32]} 20. h4 {[%emt 0:09:19]} h6 {[%emt 0:06:05]} 21. h5 {
[%emt 0:01:56]} Bh7 {[%emt 0:01:52]} 22. g5 {[%emt 0:02:38]} hxg5 {[%emt 0:00:
43]} 23. Nxg5 {[%emt 0:00:02]} Bf5 {[%emt 0:01:00]} 24. Qg3 {[%emt 0:03:04]}
Nxe5 {[%emt 0:24:44]} 25. h6 {[%emt 0:37:36]} Qf6 {[%emt 0:02:40]} 26. Ne4 {
[%emt 0:06:57]} dxe4 {[%emt 0:02:11]} 27. dxe4 {[%emt 0:00:02]} g6 {[%emt 0:01:
47]} 28. Rae1 {[%emt 0:04:12]} Rae8 {[%emt 0:03:59]} 29. exf5 {[%emt 0:01:03]}
exf5 {[%emt 0:00:02]} 30. Qb3+ {[%emt 0:00:04]} Ne6 {[%emt 0:02:31]} 31. Qxb7 {
[%emt 0:00:25]} Rf7 {[%emt 0:03:51]} 32. Qb4 {[%emt 0:00:27]} Ng5 {[%emt 0:03:
12]} 33. Ng4 {[%emt 0:07:32]} Ngf3+ {[%emt 0:11:58]} 34. Bxf3 {[%emt 0:02:01]}
fxg4 {[%emt 0:01:10]} 35. Bd5 {[%emt 0:00:02]} Nf3+ {[%emt 0:00:48]} 36. Rxf3 {
[%emt 0:00:27]} Rxe1+ {[%emt 0:00:02]} 37. Qxe1 {[%emt 0:00:06]} Qd4+ {[%emt 0:
00:05]} 38. Rf2 {[%emt 0:02:12]} 1-0

[Event "FIDE Chesscom Grand Swiss 2021"]
[Site "Riga"]
[Date "2021.11.05"]
[Round "9.53"]
[White "Rakotomaharo, Fy Antenaina"]
[Black "Vokhidov, Shamsiddin"]
[Result "0-1"]
[ECO "B22"]
[WhiteElo "2484"]
[BlackElo "2521"]
[Annotator "ChessBase"]
[PlyCount "102"]
[EventDate "2021.10.27"]
[EventType "swiss"]
[EventCountry "LAT"]
[Tiebreak "Cut1 Buchholz+Sonneborn-Berger (Swiss)"]
[SourceTitle "playchess.com"]
[Source "ChessBase"]
[SourceQuality "1"]
[TimeControl "40/6000+30:20/3000+30:900+30"]

1. e4 {[%emt 0:02:51]} c5 {[%emt 0:00:05]} 2. c3 {[%emt 0:00:05]} Nf6 {[%emt 0:
03:06]} 3. e5 {[%emt 0:00:08]} Nd5 {[%emt 0:00:02]} 4. d4 {[%emt 0:00:07]} cxd4
{[%emt 0:00:04]} 5. Qxd4 {[%emt 0:00:05]} e6 {[%emt 0:00:15]} 6. Bc4 {[%emt 0:
00:19]} Nc6 {[%emt 0:00:05]} 7. Qe4 {[%emt 0:00:04]} d6 {[%emt 0:04:44]} 8.
exd6 {[%emt 0:01:27]} Nf6 {[%emt 0:01:04]} 9. Qe2 {[%emt 0:02:57]} Bxd6 {
[%emt 0:00:07]} 10. Nf3 {[%emt 0:00:04]} Qc7 {[%emt 0:01:08]} 11. Nbd2 {
[%emt 0:02:45]} Bd7 {[%emt 0:00:31]} 12. Bb3 {[%emt 0:16:57]} Na5 {[%emt 0:10:
01]} 13. Bc2 {[%emt 0:13:29]} a6 {[%emt 0:02:50]} 14. a4 {[%emt 0:01:45]} h6 {
[%emt 0:09:13]} 15. O-O {[%emt 0:05:28]} O-O {[%emt 0:07:36]} 16. Re1 {[%emt 0:
09:06]} Nd5 {[%emt 0:13:44]} 17. Ne5 {[%emt 0:06:00]} Be8 {[%emt 0:00:05]} 18.
Ndf3 {[%emt 0:01:31]} Rd8 {[%emt 0:02:52]} 19. Qe4 {[%emt 0:09:25]} f5 {
[%emt 0:01:30]} 20. Qh4 {[%emt 0:00:39]} Rf6 {[%emt 0:02:44]} 21. g4 {[%emt 0:
06:43]} Nc6 {[%emt 0:07:08]} 22. Nxc6 {[%emt 0:07:34]} Bxc6 {[%emt 0:00:27]}
23. Nd4 {[%emt 0:00:08]} fxg4 {[%emt 0:05:02]} 24. Nxc6 {[%emt 0:19:32]} bxc6 {
[%emt 0:00:43]} 25. Qxg4 {[%emt 0:00:20]} Bxh2+ {[%emt 0:03:42]} 26. Kh1 {
[%emt 0:00:34]} Qf7 {[%emt 0:02:17]} 27. Be3 {[%emt 0:01:45]} Nxe3 {[%emt 0:02:
06]} 28. Rxe3 {[%emt 0:00:38]} Rxf2 {[%emt 0:00:11]} 29. Bg6 {[%emt 0:01:16]}
Rf1+ {[%emt 0:00:24]} 30. Kxh2 {[%emt 0:00:35]} Qf2+ {[%emt 0:00:24]} 31. Qg2 {
[%emt 0:00:13]} Qxg2+ {[%emt 0:01:01]} 32. Kxg2 {[%emt 0:00:06]} Rxa1 {[%emt 0:
00:02]} 33. Rxe6 {[%emt 0:00:11]} Rxa4 {[%emt 0:02:50]} 34. Rxc6 {[%emt 0:00:
11]} a5 {[%emt 0:00:08]} 35. Kf3 {[%emt 0:02:13]} Ra1 {[%emt 0:00:23]} 36. Ke2
{[%emt 0:00:25]} a4 {[%emt 0:00:19]} 37. Rb6 {[%emt 0:00:12]} a3 {[%emt 0:00:
20]} 38. bxa3 {[%emt 0:00:06]} Rxa3 {[%emt 0:00:04]} 39. c4 {[%emt 0:00:19]}
Ra5 {[%emt 0:00:57]} 40. Rc6 {[%emt 0:00:28]} Re5+ {[%emt 0:00:15]} 41. Kf3 {
[%emt 0:50:05]} Rf8+ {[%emt 0:50:10]} 42. Kg3 {[%emt 0:00:20]} Rg5+ {[%emt 0:
00:17]} 43. Kh2 {[%emt 0:00:14]} Rf2+ {[%emt 0:00:42]} 44. Kh3 {[%emt 0:00:13]}
Rf3+ {[%emt 0:00:14]} 45. Kh2 {[%emt 0:00:06]} h5 {[%emt 0:03:40]} 46. c5 {
[%emt 0:00:37]} h4 {[%emt 0:00:22]} 47. Rc8+ {[%emt 0:00:34]} Rf8 {[%emt 0:00:
02]} 48. Rc6 {[%emt 0:00:10]} Rg3 {[%emt 0:00:34]} 49. Re6 {[%emt 0:01:07]} Rc3
{[%emt 0:00:38]} 50. c6 {[%emt 0:00:26]} Rd8 {[%emt 0:01:31]} 51. Kg1 {[%emt 0:
00:00]} h3 {[%emt 0:00:00]} 0-1

[Event "FIDE Chesscom Grand Swiss 2021"]
[Site "Riga"]
[Date "2021.11.05"]
[Round "9.54"]
[White "Morovic Fernandez, Ivan"]
[Black "Budisavljevic, Luka"]
[Result "1/2-1/2"]
[ECO "B48"]
[WhiteElo "2510"]
[BlackElo "2508"]
[Annotator "ChessBase"]
[PlyCount "65"]
[EventDate "2021.10.27"]
[EventType "swiss"]
[EventCountry "LAT"]
[Tiebreak "Cut1 Buchholz+Sonneborn-Berger (Swiss)"]
[SourceTitle "playchess.com"]
[Source "ChessBase"]
[SourceQuality "1"]
[TimeControl "40/6000+30:20/3000+30:900+30"]

1. e4 {[%emt 0:00:12]} c5 {[%emt 0:00:05]} 2. Nf3 {[%emt 0:00:04]} e6 {[%emt 0:
00:04]} 3. d4 {[%emt 0:00:06]} cxd4 {[%emt 0:00:05]} 4. Nxd4 {[%emt 0:00:04]}
Nc6 {[%emt 0:00:05]} 5. Nc3 {[%emt 0:00:12]} Qc7 {[%emt 0:00:06]} 6. Be3 {
[%emt 0:00:53]} a6 {[%emt 0:00:05]} 7. Qf3 {[%emt 0:02:33]} Bd6 {[%emt 0:00:31]
} 8. O-O-O {[%emt 0:01:08]} Be5 {[%emt 0:00:08]} 9. Nxc6 {[%emt 0:06:49]} bxc6
{[%emt 0:00:04]} 10. Bd4 {[%emt 0:00:03]} Bxd4 {[%emt 0:00:30]} 11. Rxd4 {
[%emt 0:00:05]} Nf6 {[%emt 0:00:04]} 12. Qg3 {[%emt 0:14:04]} Qxg3 {[%emt 0:00:
06]} 13. hxg3 {[%emt 0:00:03]} d5 {[%emt 0:00:04]} 14. Bd3 {[%emt 0:09:23]} h6
{[%emt 0:05:44]} 15. Re1 {[%emt 0:07:44]} O-O {[%emt 0:03:22]} 16. Na4 {
[%emt 0:09:00]} a5 {[%emt 0:10:40]} 17. Nb6 {[%emt 0:13:40]} Ra7 {[%emt 0:06:
22]} 18. Ra4 {[%emt 0:03:54]} Nd7 {[%emt 0:03:53]} 19. Nxd7 {[%emt 0:00:48]}
Bxd7 {[%emt 0:00:07]} 20. Ra3 {[%emt 0:02:55]} Rb8 {[%emt 0:07:38]} 21. Rb3 {
[%emt 0:04:44]} Rxb3 {[%emt 0:16:44]} 22. axb3 {[%emt 0:02:56]} Kf8 {[%emt 0:
01:15]} 23. Kd2 {[%emt 0:01:09]} Ke7 {[%emt 0:00:08]} 24. exd5 {[%emt 0:07:51]}
cxd5 {[%emt 0:00:34]} 25. Ra1 {[%emt 0:00:02]} Kd6 {[%emt 0:04:10]} 26. c3 {
[%emt 0:11:24]} Kc7 {[%emt 0:04:54]} 27. b4 {[%emt 0:01:54]} Kb6 {[%emt 0:08:
15]} 28. bxa5+ {[%emt 0:01:02]} Rxa5 {[%emt 0:00:02]} 29. Rxa5 {[%emt 0:01:34]}
Kxa5 {[%emt 0:00:02]} 30. Ke3 {[%emt 0:01:04]} e5 {[%emt 0:04:59]} 31. f4 {
[%emt 0:01:39]} f6 {[%emt 0:00:24]} 32. Be2 {[%emt 0:04:27]} Kb6 {[%emt 0:15:
17]} 33. fxe5 {[%emt 0:00:04]} 1/2-1/2

[Event "FIDE Chesscom Grand Swiss 2021"]
[Site "Riga"]
[Date "2021.11.06"]
[Round "10.53"]
[White "Miezis, Normunds"]
[Black "Budisavljevic, Luka"]
[Result "1-0"]
[ECO "A34"]
[WhiteElo "2467"]
[BlackElo "2508"]
[Annotator "ChessBase"]
[PlyCount "107"]
[EventDate "2021.10.27"]
[EventType "swiss"]
[EventCountry "LAT"]
[Tiebreak "Cut1 Buchholz+Sonneborn-Berger (Swiss)"]
[SourceTitle "playchess.com"]
[Source "ChessBase"]
[SourceQuality "1"]
[TimeControl "40/6000+30:20/3000+30:900+30"]

1. c4 {[%emt 0:00:06]} Nf6 {[%emt 0:00:21]} 2. Nc3 {[%emt 0:00:22]} c5 {
[%emt 0:00:23]} 3. g3 {[%emt 0:01:02]} e6 {[%emt 0:00:43]} 4. Bg2 {[%emt 0:01:
27]} d5 {[%emt 0:00:59]} 5. cxd5 {[%emt 0:03:32]} exd5 {[%emt 0:00:06]} 6. d3 {
[%emt 0:01:07]} d4 {[%emt 0:00:25]} 7. Ne4 {[%emt 0:00:15]} Nxe4 {[%emt 0:00:
09]} 8. Bxe4 {[%emt 0:00:07]} Be7 {[%emt 0:01:47]} 9. h4 {[%emt 0:00:12]} Nc6 {
[%emt 0:06:31]} 10. Nh3 {[%emt 0:03:47]} Bxh3 {[%emt 0:19:20]} 11. Rxh3 {
[%emt 0:01:13]} Qd7 {[%emt 0:00:16]} 12. Rh1 {[%emt 0:02:53]} O-O {[%emt 0:01:
33]} 13. Kf1 {[%emt 0:01:20]} f5 {[%emt 0:07:32]} 14. Bf3 {[%emt 0:00:41]} Bd6
{[%emt 0:03:06]} 15. Bf4 {[%emt 0:04:35]} Bxf4 {[%emt 0:02:27]} 16. gxf4 {
[%emt 0:00:16]} Rac8 {[%emt 0:03:13]} 17. h5 {[%emt 0:02:48]} Kh8 {[%emt 0:00:
42]} 18. h6 {[%emt 0:07:20]} g6 {[%emt 0:07:49]} 19. Rc1 {[%emt 0:03:00]} Ne7 {
[%emt 0:07:09]} 20. Qb3 {[%emt 0:05:39]} b6 {[%emt 0:00:18]} 21. a4 {[%emt 0:
03:37]} Qd6 {[%emt 0:02:39]} 22. e3 {[%emt 0:00:19]} Rcd8 {[%emt 0:05:45]} 23.
Ke2 {[%emt 0:13:20]} Ng8 {[%emt 0:02:17]} 24. Kd2 {[%emt 0:03:14]} Rfe8 {
[%emt 0:06:34]} 25. Rce1 {[%emt 0:00:24]} Re7 {[%emt 0:03:04]} 26. Re2 {
[%emt 0:10:08]} Red7 {[%emt 0:04:17]} 27. Kc2 {[%emt 0:06:34]} c4 {[%emt 0:02:
08]} 28. Qb5 {[%emt 0:00:54]} a6 {[%emt 0:05:55]} 29. Qxa6 {[%emt 0:06:45]}
dxe3 {[%emt 0:00:28]} 30. Rxe3 {[%emt 0:00:36]} cxd3+ {[%emt 0:00:58]} 31. Kb1
{[%emt 0:01:51]} Qxf4 {[%emt 0:02:31]} 32. Qb5 {[%emt 0:07:04]} d2 {[%emt 0:03:
36]} 33. Bd1 {[%emt 0:01:31]} Rc7 {[%emt 0:05:18]} 34. Bb3 {[%emt 0:04:04]} Qd4
{[%emt 0:03:13]} 35. Ka2 {[%emt 0:03:13]} Nf6 {[%emt 0:00:58]} 36. Re6 {
[%emt 0:01:29]} Rcd7 {[%emt 0:02:01]} 37. Rd1 {[%emt 0:06:59]} Ne4 {[%emt 0:00:
15]} 38. f3 {[%emt 0:00:32]} Nc5 {[%emt 0:00:44]} 39. Rxb6 {[%emt 0:01:03]} Qe3
{[%emt 0:01:42]} 40. Rb8 {[%emt 0:02:16]} Qxb3+ {[%emt 0:00:46]} 41. Qxb3 {
[%emt 0:50:17]} Nxb3 {[%emt 0:50:03]} 42. Rxd8+ {[%emt 0:00:28]} Rxd8 {[%emt 0:
00:01]} 43. Kxb3 {[%emt 0:00:12]} g5 {[%emt 0:00:00]} 44. Kc3 {[%emt 0:00:00]}
Rd6 {[%emt 0:00:00]} 45. Rxd2 {[%emt 0:00:00]} Rxh6 {[%emt 0:00:00]} 46. b4 {
[%emt 0:00:00]} g4 {[%emt 0:00:00]} 47. b5 {[%emt 0:00:00]} g3 {[%emt 0:00:00]}
48. Rg2 {[%emt 0:00:00]} f4 {[%emt 0:00:00]} 49. a5 {[%emt 0:00:00]} Rh5 {
[%emt 0:00:00]} 50. b6 {[%emt 0:00:00]} Rxa5 {[%emt 0:00:00]} 51. b7 {[%emt 0:
00:00]} Rb5 {[%emt 0:00:00]} 52. Rb2 {[%emt 0:00:00]} Rxb7 {[%emt 0:00:00]} 53.
Rxb7 {[%emt 0:00:00]} h5 {[%emt 0:00:00]} 54. Rb5 {[%emt 0:00:00]} 1-0

[Event "FIDE Chesscom Grand Swiss 2021"]
[Site "Riga"]
[Date "2021.11.06"]
[Round "10.54"]
[White "Van Foreest, Lucas"]
[Black "Rakotomaharo, Fy Antenaina"]
[Result "1/2-1/2"]
[ECO "E38"]
[WhiteElo "2543"]
[BlackElo "2484"]
[Annotator "ChessBase"]
[PlyCount "151"]
[EventDate "2021.10.27"]
[EventType "swiss"]
[EventCountry "LAT"]
[Tiebreak "Cut1 Buchholz+Sonneborn-Berger (Swiss)"]
[SourceTitle "playchess.com"]
[Source "ChessBase"]
[SourceQuality "1"]
[TimeControl "40/6000+30:20/3000+30:900+30"]

1. d4 {[%emt 0:00:13]} Nf6 {[%emt 0:00:23]} 2. c4 {[%emt 0:00:06]} e6 {[%emt 0:
00:06]} 3. Nc3 {[%emt 0:00:04]} Bb4 {[%emt 0:00:04]} 4. Qc2 {[%emt 0:00:05]} c5
{[%emt 0:00:19]} 5. dxc5 {[%emt 0:00:06]} Qc7 {[%emt 0:00:15]} 6. Nf3 {[%emt 0:
03:27]} Bxc5 {[%emt 0:00:16]} 7. e3 {[%emt 0:00:41]} a6 {[%emt 0:00:24]} 8. a3
{[%emt 0:06:31]} b6 {[%emt 0:00:15]} 9. b4 {[%emt 0:03:09]} Be7 {[%emt 0:00:07]
} 10. Bb2 {[%emt 0:00:16]} Bb7 {[%emt 0:00:07]} 11. Bd3 {[%emt 0:08:29]} d6 {
[%emt 0:02:58]} 12. O-O {[%emt 0:03:51]} Nbd7 {[%emt 0:01:06]} 13. Ne4 {
[%emt 0:05:33]} Rc8 {[%emt 0:08:00]} 14. Rac1 {[%emt 0:01:28]} h6 {[%emt 0:00:
54]} 15. h3 {[%emt 0:20:39]} O-O {[%emt 0:03:17]} 16. Ned2 {[%emt 0:01:44]} Qb8
{[%emt 0:15:35]} 17. Qb1 {[%emt 0:00:22]} Bd8 {[%emt 0:05:40]} 18. Rfd1 {
[%emt 0:03:30]} Re8 {[%emt 0:04:00]} 19. Ne4 {[%emt 0:09:55]} Be7 {[%emt 0:07:
58]} 20. Ned2 {[%emt 0:05:42]} Qa8 {[%emt 0:04:15]} 21. Re1 {[%emt 0:04:50]}
Bd8 {[%emt 0:05:22]} 22. e4 {[%emt 0:01:34]} Bc7 {[%emt 0:04:29]} 23. Bf1 {
[%emt 0:00:02]} Red8 {[%emt 0:04:52]} 24. Rcd1 {[%emt 0:00:41]} Ne5 {[%emt 0:
02:53]} 25. Nxe5 {[%emt 0:00:43]} dxe5 {[%emt 0:00:07]} 26. Qa1 {[%emt 0:01:17]
} a5 {[%emt 0:11:13]} 27. f3 {[%emt 0:02:19]} axb4 {[%emt 0:08:10]} 28. axb4 {
[%emt 0:00:30]} Qxa1 {[%emt 0:00:04]} 29. Bxa1 {[%emt 0:00:04]} Ra8 {[%emt 0:
00:14]} 30. Nb3 {[%emt 0:00:39]} Rxd1 {[%emt 0:00:46]} 31. Rxd1 {[%emt 0:00:01]
} Ra3 {[%emt 0:00:19]} 32. Nd2 {[%emt 0:02:09]} Bc6 {[%emt 0:03:24]} 33. Bb2 {
[%emt 0:03:52]} Ra2 {[%emt 0:00:35]} 34. Bc3 {[%emt 0:02:39]} Rc2 {[%emt 0:00:
38]} 35. Nb1 {[%emt 0:00:23]} Ba4 {[%emt 0:00:37]} 36. Rd2 {[%emt 0:00:44]}
Rxd2 {[%emt 0:13:06]} 37. Bxd2 {[%emt 0:00:21]} Bc6 {[%emt 0:00:18]} 38. Nc3 {
[%emt 0:00:16]} h5 {[%emt 0:00:52]} 39. Bd3 {[%emt 0:00:43]} Bd6 {[%emt 0:01:
47]} 40. Nd1 {[%emt 0:02:59]} Nd7 {[%emt 0:02:15]} 41. Nb2 {[%emt 0:50:28]} Kf8
{[%emt 0:03:11]} 42. Kf2 {[%emt 0:00:00]} h4 {[%emt 0:03:24]} 43. Bc2 {[%emt 0:
00:00]} f6 {[%emt 0:03:43]} 44. Ba4 {[%emt 0:00:00]} Nb8 {[%emt 0:00:20]} 45.
Bxc6 {[%emt 0:00:00]} Nxc6 {[%emt 0:00:05]} 46. Nd3 {[%emt 0:00:00]} Ke7 {
[%emt 0:06:28]} 47. Bc3 {[%emt 0:00:00]} Kd7 {[%emt 0:02:17]} 48. Ke3 {[%emt 0:
00:00]} g5 {[%emt 0:05:07]} 49. Kd2 {[%emt 0:00:00]} Kc7 {[%emt 0:06:36]} 50.
b5 {[%emt 0:00:00]} Nb8 {[%emt 0:03:08]} 51. Kc2 {[%emt 0:00:00]} Nd7 {[%emt 0:
01:38]} 52. Nb4 {[%emt 0:00:00]} Nf8 {[%emt 0:03:19]} 53. Kb3 {[%emt 0:00:00]}
Ng6 {[%emt 0:02:14]} 54. Bd2 {[%emt 0:00:00]} Be7 {[%emt 0:10:14]} 55. Nd3 {
[%emt 0:00:00]} f5 {[%emt 0:01:42]} 56. Be3 {[%emt 0:00:00]} Kb7 {[%emt 0:02:
02]} 57. Kc2 {[%emt 0:02:03]} Kc7 {[%emt 0:00:32]} 58. Kd1 {[%emt 0:00:22]} Kb7
{[%emt 0:02:47]} 59. Ke1 {[%emt 0:00:27]} Kc7 {[%emt 0:01:20]} 60. Kf1 {
[%emt 0:00:33]} Kb7 {[%emt 0:01:09]} 61. c5 {[%emt 0:15:10]} bxc5 {[%emt 0:03:
08]} 62. Nxc5+ {[%emt 0:00:00]} Bxc5 {[%emt 0:00:38]} 63. Bxc5 {[%emt 0:00:00]}
Kc7 {[%emt 0:00:21]} 64. Kf2 {[%emt 0:00:00]} Kd7 {[%emt 0:07:23]} 65. Kf1 {
[%emt 0:00:00]} Kc7 {[%emt 0:00:27]} 66. Kg1 {[%emt 0:00:00]} Kd7 {[%emt 0:03:
36]} 67. Kf2 {[%emt 0:00:00]} Kc7 {[%emt 0:01:29]} 68. Be3 {[%emt 0:00:00]} Nf4
{[%emt 0:00:05]} 69. g3 {[%emt 0:00:20]} Nh5 {[%emt 0:01:50]} 70. gxh4 {
[%emt 0:02:12]} gxh4 {[%emt 0:00:05]} 71. Bg5 {[%emt 0:05:11]} fxe4 {[%emt 0:
01:24]} 72. fxe4 {[%emt 0:01:00]} Nf4 {[%emt 0:00:29]} 73. Bxh4 {[%emt 0:04:35]
} Nxh3+ {[%emt 0:00:10]} 74. Ke3 {[%emt 0:01:06]} Kb6 {[%emt 0:00:09]} 75. Bf6
{[%emt 0:00:10]} Kxb5 {[%emt 0:00:10]} 76. Bxe5 {[%emt 0:00:04]} 1/2-1/2

[Event "FIDE Chesscom Grand Swiss 2021"]
[Site "Riga"]
[Date "2021.11.07"]
[Round "11.1"]
[White "Oparin, Grigoriy"]
[Black "Firouzja, Alireza"]
[Result "1/2-1/2"]
[ECO "C65"]
[WhiteElo "2654"]
[BlackElo "2770"]
[Annotator "ChessBase"]
[PlyCount "56"]
[EventDate "2021.10.27"]
[EventType "swiss"]
[EventCountry "LAT"]
[Tiebreak "Cut1 Buchholz+Sonneborn-Berger (Swiss)"]
[SourceTitle "playchess.com"]
[Source "ChessBase"]
[SourceQuality "1"]
[TimeControl "40/6000+30:20/3000+30:900+30"]

1. e4 {[%emt 0:00:03]} e5 {[%emt 0:00:08]} 2. Nf3 {[%emt 0:00:04]} Nc6 {
[%emt 0:00:06]} 3. Bb5 {[%emt 0:00:06]} Nf6 {[%emt 0:00:09]} 4. d3 {[%emt 0:00:
07]} Bc5 {[%emt 0:00:22]} 5. Bxc6 {[%emt 0:00:13]} dxc6 {[%emt 0:00:09]} 6. O-O
{[%emt 0:00:12]} Nd7 {[%emt 0:01:19]} 7. c3 {[%emt 0:00:23]} O-O {[%emt 0:07:
14]} 8. d4 {[%emt 0:00:08]} Bd6 {[%emt 0:01:52]} 9. Bg5 {[%emt 0:00:26]} f6 {
[%emt 0:00:05]} 10. Bh4 {[%emt 0:00:03]} Qe8 {[%emt 0:03:03]} 11. Nbd2 {
[%emt 0:00:46]} a5 {[%emt 0:04:33]} 12. Qc2 {[%emt 0:03:03]} Qf7 {[%emt 0:07:
36]} 13. Bg3 {[%emt 0:03:26]} a4 {[%emt 0:04:38]} 14. b3 {[%emt 0:11:06]} exd4
{[%emt 0:03:14]} 15. Bxd6 {[%emt 0:14:39]} cxd6 {[%emt 0:00:42]} 16. Nxd4 {
[%emt 0:00:11]} axb3 {[%emt 0:09:29]} 17. axb3 {[%emt 0:00:06]} Rxa1 {[%emt 0:
00:05]} 18. Rxa1 {[%emt 0:00:04]} d5 {[%emt 0:05:36]} 19. exd5 {[%emt 0:15:40]}
Qxd5 {[%emt 0:00:48]} 20. Nc4 {[%emt 0:00:06]} Ne5 {[%emt 0:03:38]} 21. Nb6 {
[%emt 0:05:37]} Qd8 {[%emt 0:08:16]} 22. Nxc8 {[%emt 0:00:20]} Qxc8 {[%emt 0:
00:05]} 23. Nf5 {[%emt 0:04:33]} Qe6 {[%emt 0:03:22]} 24. Rd1 {[%emt 0:01:40]}
Nf7 {[%emt 0:02:50]} 25. Nd4 {[%emt 0:05:14]} Qe7 {[%emt 0:00:27]} 26. Nf5 {
[%emt 0:00:11]} Qe6 {[%emt 0:00:06]} 27. Nd4 {[%emt 0:00:20]} Qe7 {[%emt 0:00:
04]} 28. Nf5 {[%emt 0:00:04]} Qe6 1/2-1/2

[Event "FIDE Chesscom Grand Swiss 2021"]
[Site "Riga"]
[Date "2021.11.07"]
[Round "11.7"]
[White "Howell, David W L"]
[Black "Keymer, Vincent"]
[Result "1/2-1/2"]
[ECO "A11"]
[WhiteElo "2658"]
[BlackElo "2630"]
[Annotator "RC"]
[PlyCount "152"]
[EventDate "2021.10.27"]
[EventType "swiss"]
[EventCountry "LAT"]
[Tiebreak "Cut1 Buchholz+Sonneborn-Berger (Swiss)"]
[SourceTitle "playchess.com"]
[Source "ChessBase"]
[SourceQuality "1"]
[TimeControl "40/6000+30:20/3000+30:900+30"]

1. Nf3 {[%emt 0:03:46]} d5 {[%emt 0:00:06]} 2. g3 {[%emt 0:00:18]} c6 {[%emt 0:
00:20]} 3. Bg2 {[%emt 0:02:03]} Bg4 {[%emt 0:00:06]} 4. c4 {[%emt 0:03:26]} e6
{[%emt 0:09:09]} 5. cxd5 {[%emt 0:01:23]} Bxf3 {[%emt 0:01:21]} 6. Bxf3 {
[%emt 0:00:11]} cxd5 {[%emt 0:00:04]} 7. O-O {[%emt 0:00:49]} Nc6 {[%emt 0:01:
11]} 8. d4 {[%emt 0:03:01]} Nf6 {[%emt 0:06:31]} 9. Nc3 {[%emt 0:02:01]} Be7 {
[%emt 0:00:10]} 10. e3 {[%emt 0:00:22]} O-O {[%emt 0:00:08]} 11. Bd2 {[%emt 0:
07:36]} Na5 {[%emt 0:02:08]} 12. b3 {[%emt 0:14:26]} Nc6 {[%emt 0:03:01]} 13.
a3 {[%emt 0:09:16]} Rc8 {[%emt 0:06:08]} 14. Qb1 {[%emt 0:10:57]} e5 {[%emt 0:
17:53]} 15. dxe5 {[%emt 0:07:57]} Nxe5 {[%emt 0:00:07]} 16. Bg2 {[%emt 0:00:10]
} Ne4 {[%emt 0:03:06]} 17. Nxe4 {[%emt 0:06:18]} dxe4 {[%emt 0:00:17]} 18. Rd1
{[%emt 0:00:13]} f5 {[%emt 0:00:51]} 19. Bc3 {[%emt 0:02:47]} Nd3 {[%emt 0:26:
37]} 20. Bd4 {[%emt 0:01:47]} Bf6 {[%emt 0:01:16]} 21. Bf1 {[%emt 0:00:31]}
Bxd4 {[%emt 0:00:05]} 22. Bxd3 {[%emt 0:02:54]} exd3 {[%emt 0:00:23]} 23. Rxd3
{[%emt 0:05:56]} Bxa1 {[%emt 0:01:19]} 24. Rxd8 {[%emt 0:00:06]} Rfxd8 {
[%emt 0:02:13]} 25. Qxa1 {[%emt 0:00:07]} Rd5 {[%emt 0:01:52]} 26. Qa2 {
[%emt 0:06:04]} Kh8 {[%emt 0:07:52]} 27. b4 {[%emt 0:06:10]} Rcd8 {[%emt 0:00:
06]} 28. Qc2 {[%emt 0:03:30]} a6 {[%emt 0:01:24]} 29. a4 {[%emt 0:04:32]} h6 {
[%emt 0:03:38]} 30. Kg2 {[%emt 0:00:15]} Kg8 {[%emt 0:04:17]} 31. h3 {[%emt 0:
00:41]} Kh8 {[%emt 0:03:26]} 32. Kf3 {[%emt 0:01:00]} R5d6 {[%emt 0:03:14]} 33.
Qc5 {[%emt 0:01:25]} Rd5 {[%emt 0:00:57]} 34. Qe7 {[%emt 0:03:38]} R8d7 {
[%emt 0:00:33]} 35. Qe6 {[%emt 0:01:08]} Kh7 {[%emt 0:00:27]} 36. Kg2 {[%emt 0:
00:53]} R7d6 {[%emt 0:01:09]} 37. Qc8 {[%emt 0:00:26]} b5 {[%emt 0:02:25]} 38.
a5 {[%emt 0:00:21]} Rf6 {[%emt 0:00:15]} 39. Qc2 {[%emt 0:00:43]} Re5 {[%emt 0:
01:49]} 40. Qc3 {[%emt 0:00:51]} Re4 {[%emt 0:01:50]} 41. h4 {[%emt 0:28:04]}
Rc4 {[%emt 0:02:47]} 42. Qd2 {[%emt 0:00:31]} Kg6 {[%emt 0:03:45]} 43. Kh3 {
[%emt 0:01:56]} Re4 {[%emt 0:05:38]} 44. Qc3 {[%emt 0:01:17]} Rc4 {[%emt 0:01:
51]} 45. Qb2 {[%emt 0:00:56]} Re4 {[%emt 0:03:51]} 46. Qb3 {[%emt 0:03:05]} Rc4
{[%emt 0:01:10]} 47. Qb1 {[%emt 0:00:51]} h5 {[%emt 0:04:27]} 48. Qb2 {[%emt 0:
00:22]} Rd6 {[%emt 0:00:40]} 49. Qe5 {[%emt 0:01:43]} Rf6 {[%emt 0:00:59]} 50.
Qe8+ {[%emt 0:02:36]} Kh6 {[%emt 0:00:30]} 51. Qh8+ {[%emt 0:01:06]} Kg6 {
[%emt 0:00:05]} 52. Qe8+ {[%emt 0:00:05]} Kh6 {[%emt 0:00:04]} 53. Qe7 {
[%emt 0:08:56]} Re4 {[%emt 0:00:39]} 54. Qc5 {[%emt 0:00:04]} Rc4 {[%emt 0:01:
04]} 55. Qe7 {[%emt 0:00:06]} Re4 {[%emt 0:00:05]} 56. Qc5 {[%emt 0:00:09]} Rc4
{[%emt 0:00:46]} 57. Qd5 {[%emt 0:04:19]} Re4 {[%emt 0:07:47]} 58. Qd2 {
[%emt 0:01:09]} Rfe6 {[%emt 0:00:28]} 59. Kg2 {[%emt 0:01:30]} Kg6 {[%emt 0:01:
31]} 60. Kf1 {[%emt 0:00:27]} Rc6 {[%emt 0:03:02]} 61. Ke2 {[%emt 0:02:55]}
Rce6 {[%emt 0:05:54]} 62. Kf3 {[%emt 0:02:52]} Rf6 {[%emt 0:00:29]} 63. Kg2 {
[%emt 0:04:57]} Rfe6 {[%emt 0:00:13]} 64. Kh2 {[%emt 0:00:09]} Kh7 {[%emt 0:03:
40]} 65. Kh1 {[%emt 0:03:12]} Rc6 {[%emt 0:01:49]} 66. Kg2 {[%emt 0:01:30]}
Rce6 {[%emt 0:00:52]} 67. Kf1 {[%emt 0:01:01]} Kh6 {[%emt 0:06:48]} 68. Ke1 {
[%emt 0:00:38]} Kh7 {[%emt 0:00:46]} 69. Qd5 {[%emt 0:00:41]} Rf6 {[%emt 0:01:
07]} 70. Qd2 {[%emt 0:00:29]} Rfe6 {[%emt 0:00:46]} 71. Kd1 {[%emt 0:00:37]}
Kh6 {[%emt 0:01:40]} 72. Kc2 {[%emt 0:01:00]} Rc4+ {[%emt 0:00:35]} 73. Kd1 {
[%emt 0:01:08]} Rce4 {[%emt 0:00:16]} 74. Ke2 {[%emt 0:01:33]} Kg6 {[%emt 0:00:
18]} 75. Qd5 {[%emt 0:00:19]} Rf6 {[%emt 0:01:35]} 76. Qd2 {[%emt 0:00:45]}
Rfe6 {[%emt 0:02:20]} 1/2-1/2